fUST/lending_fUST_20260109
["ID","MTS","AMOUNT","RATE_DAILY","PERIOD"]
[401134607,1767959444012,-151.0,0.000151,2]
[401134608,1767959444021,-467.0,0.00015191,2]
[401134609,1767959444031,-151.0,0.000153,2]
[401134610,1767959444040,-777.0,0.000153,2]
[401134611,1767959444049,-457.566,0.00015316,2]
[401134612,1767959444058,-1200.0,0.00015316,2]
[401134613,1767959444067,-467.0,0.00015328,2]
[401134614,1767959444077,-186.239267,0.00015342,2]
[401134615,1767959444086,-186.239267,0.00015342,2]
[401134616,1767959444095,-186.239267,0.00015342,2]
[401134617,1767959444104,-186.239276,0.00015342,2]
[401134618,1767959444113,-2000.0,0.00015342,2]
[401134619,1767959444126,-1489.76585726,0.00015342,2]
[401134620,1767959444136,-500.0,0.00015342,2]
[401134621,1767959444145,-1500.0,0.00015342,2]
[401134622,1767959444154,-2000.0,0.00015342,2]
[401134623,1767959444164,-1500.0,0.00015342,2]
[401134624,1767959444173,-1000.0,0.00015342,2]
[401134625,1767959444183,-2000.0,0.00015342,2]
[401134626,1767959444193,-947.49421984,0.00015342,2]
[401134627,1767959444203,-2000.0,0.00015342,2]
[401134628,1767959444212,-1300.0,0.00015356,2]
[401134629,1767959444222,-151.0,0.000154,2]
[401134630,1767959444231,-250.0,0.00015441,2]
[401134631,1767959444240,-200.58193509,0.00015447,2]
[401134632,1767959444249,-347.0,0.00015447,2]
[401134633,1767959444260,-347.0,0.00015447,2]
[401134634,1767959444270,-347.0,0.00015447,2]
[401134635,1767959444280,-347.0,0.00015447,2]
[401134636,1767959444289,-347.0,0.00015447,2]
[401134637,1767959444299,-166.0,0.00015447,2]
[401134638,1767959444308,-153.55324205,0.00015447,2]
[401134639,1767959444317,-336.0,0.00015447,2]
[401134640,1767959444326,-347.0,0.00015447,2]
[401134641,1767959444336,-166.0,0.00015447,2]
[401134642,1767959444345,-336.0,0.00015447,2]
[401134643,1767959444355,-347.0,0.00015447,2]
[401134644,1767959444365,-166.0,0.00015447,2]
[401134646,1767959444375,-336.0,0.00015447,2]
[401134648,1767959444384,-347.0,0.00015447,2]
[401134650,1767959444393,-166.0,0.00015447,2]
[401134651,1767959444402,-336.0,0.00015447,2]
[401134652,1767959444412,-347.0,0.00015447,2]
[401134653,1767959444421,-166.0,0.00015447,2]
[401134654,1767959444431,-336.0,0.00015447,2]
[401134655,1767959444440,-347.0,0.00015447,2]
[401134656,1767959444450,-336.0,0.00015447,2]
[401134657,1767959444460,-166.0,0.00015447,2]
[401134658,1767959444470,-347.0,0.00015447,2]
[401134659,1767959444479,-152.0,0.00015447,2]
[401134660,1767959444488,-166.0,0.00015447,2]
[401134661,1767959444498,-336.0,0.00015447,2]
[401134662,1767959444508,-347.0,0.00015447,2]
[401134663,1767959444516,-336.0,0.00015447,2]
[401134664,1767959444525,-172.0,0.00015447,2]
[401134666,1767959444650,-336.0,0.00015447,2]
[401134667,1767959444660,-347.0,0.00015447,2]
[401134668,1767959444670,-152.0,0.00015447,2]
[401134669,1767959444680,-152.0,0.00015447,2]
[401134670,1767959444689,-336.0,0.00015447,2]
[401134671,1767959444699,-152.0,0.00015447,2]
[401134672,1767959444709,-336.0,0.00015447,2]
[401134673,1767959444718,-347.0,0.00015447,2]
[401134674,1767959444727,-336.0,0.00015447,2]
[401134675,1767959444737,-151.0,0.00015447,2]
[401134676,1767959444747,-152.0,0.00015447,2]
[401134677,1767959444759,-347.0,0.00015447,2]
[401134678,1767959444768,-336.0,0.00015447,2]
[401134679,1767959444777,-152.0,0.00015447,2]
[401134680,1767959444787,-151.0,0.00015447,2]
[401134681,1767959444798,-347.0,0.00015447,2]
[401134682,1767959444808,-336.0,0.00015447,2]
[401134683,1767959444818,-152.0,0.00015447,2]
[401134684,1767959444828,-151.0,0.00015447,2]
[401134685,1767959444838,-347.0,0.00015447,2]
[401134686,1767959444848,-151.0,0.00015447,2]
[401134687,1767959444857,-152.0,0.00015447,2]
[401134688,1767959444867,-336.0,0.00015447,2]
[401134689,1767959444876,-347.0,0.00015447,2]
[401134690,1767959444886,-347.0,0.00015447,2]
[401134691,1767959444896,-336.0,0.00015447,2]
[401134692,1767959444906,-151.0,0.00015447,2]
[401134693,1767959444917,-292.23410798,0.00015447,2]
[401134694,1767959444927,-347.0,0.00015447,2]
[401134695,1767959444937,-151.0,0.00015447,2]
[401134696,1767959444947,-336.0,0.00015447,2]
[401134697,1767959444956,-336.0,0.00015447,2]
[401134698,1767959444966,-151.0,0.00015447,2]
[401134699,1767959444976,-347.0,0.00015447,2]
[401134700,1767959444986,-336.0,0.00015447,2]
[401134701,1767959444996,-151.0,0.00015447,2]
[401134702,1767959445007,-347.0,0.00015447,2]
[401134703,1767959445016,-191.42813363,0.00015447,2]
[401134704,1767959445027,-347.0,0.00015447,2]
[401134705,1767959445036,-336.0,0.00015447,2]
[401134706,1767959445046,-151.0,0.00015447,2]
[401134707,1767959445056,-347.0,0.00015447,2]
[401134708,1767959445066,-336.0,0.00015447,2]
[401134709,1767959445076,-151.0,0.00015447,2]
[401134710,1767959445087,-347.0,0.00015447,2]
[401134711,1767959445097,-336.0,0.00015447,2]
[401134712,1767959445107,-151.0,0.00015447,2]
[401134713,1767959445118,-347.0,0.00015447,2]
[401134714,1767959445130,-336.0,0.00015447,2]
[401134715,1767959445139,-151.0,0.00015447,2]
[401134716,1767959445149,-151.0,0.00015447,2]
[401134717,1767959445160,-347.0,0.00015447,2]
[401134718,1767959445170,-336.0,0.00015447,2]
[401134719,1767959445180,-347.0,0.00015447,2]
[401134720,1767959445190,-336.0,0.00015447,2]
[401134721,1767959445201,-151.0,0.00015447,2]
[401134722,1767959445211,-336.0,0.00015447,2]
[401134723,1767959445221,-151.0,0.00015447,2]
[401134724,1767959445230,-347.0,0.00015447,2]
[401134725,1767959445240,-336.0,0.00015447,2]
[401134726,1767959445249,-347.0,0.00015447,2]
[401134727,1767959445260,-151.0,0.00015447,2]
[401134728,1767959445270,-347.0,0.00015447,2]
[401134729,1767959445280,-151.0,0.00015447,2]
[401134730,1767959445290,-336.0,0.00015447,2]
[401134731,1767959445300,-151.0,0.00015447,2]
[401134732,1767959445309,-449.17028576,0.00015447,2]
[401134733,1767959445318,-347.0,0.00015447,2]
[401134734,1767959445328,-151.0,0.00015447,2]
[401134735,1767959445337,-347.0,0.00015447,2]
[401134736,1767959445347,-151.0,0.00015447,2]
[401134738,1767959445356,-151.0,0.00015447,2]
[401134739,1767959445365,-347.0,0.00015447,2]
[401134740,1767959445375,-151.0,0.00015447,2]
[401134741,1767959445384,-347.0,0.00015447,2]
[401134742,1767959445394,-151.0,0.00015447,2]
[401134743,1767959445403,-347.0,0.00015447,2]
[401134744,1767959445413,-151.0,0.00015447,2]
[401134745,1767959445422,-347.0,0.00015447,2]
[401134746,1767959445432,-151.0,0.00015447,2]
[401134747,1767959445442,-347.0,0.00015447,2]
[401134748,1767959445452,-151.0,0.00015447,2]
[401134749,1767959445461,-151.0,0.00015447,2]
[401134750,1767959445471,-347.0,0.00015447,2]
[401134751,1767959445480,-151.0,0.00015447,2]
[401134752,1767959445490,-188.09364642,0.00015447,2]
[401134753,1767959445500,-151.0,0.00015447,2]
[401134754,1767959445510,-151.0,0.00015447,2]
[401134755,1767959445519,-151.0,0.00015447,2]
[401134756,1767959445530,-151.0,0.00015447,2]
[401134757,1767959445540,-151.0,0.00015447,2]
[401134758,1767959445550,-151.0,0.00015447,2]
[401134759,1767959445560,-154.14921708,0.00015447,2]
[401134760,1767959445570,-2500.0,0.00015464,2]
[401134761,1767959445579,-1397.40421659,0.00015464,2]
[401134762,1767959445589,-2500.0,0.00015464,2]
[401134763,1767959445600,-2500.0,0.00015464,2]
[401134764,1767959445610,-2500.0,0.00015464,2]
[401134765,1767959445620,-2500.0,0.00015464,2]
[401134766,1767959445631,-467.0,0.00015465,2]
[401134767,1767959445642,-151.0,0.000155,2]
[401134768,1767959445652,-587.0,0.00015598,2]
[401134769,1767959445663,-151.0,0.000156,2]
[401134770,1767959445673,-467.0,0.00015602,2]
[401134771,1767959445683,-514.84070869,0.00015631,2]
[401134772,1767959445692,-2487.15318209,0.00015631,2]
[401134773,1767959445702,-151.0,0.00015631,2]
[401134774,1767959445712,-21586.80632037,0.00015631,2]
[401134775,1767959445723,-9942.97674756,0.00015692,2]
[401134776,1767959445733,-694.0,0.00015696,2]
[401134777,1767959445744,-151.0,0.000157,2]
[401134778,1767959445755,-800.0,0.00015722,2]
[401134779,1767959445767,-694.0,0.00015734,2]
[401134780,1767959445778,-467.0,0.00015739,2]
[401134781,1767959445789,-277.65151149,0.00015756,2]
[401134782,1767959445801,-186349.058615,0.00015759,2]
[401134783,1767959445813,-800.0,0.00015786,2]
[401134784,1767959445824,-151.0,0.000158,2]
[401134785,1767959445834,-800.0,0.00015801,2]
[401134786,1767959445845,-694.0,0.00015819,2]
[401134787,1767959445857,-800.0,0.0001582,2]
[401134788,1767959445868,-800.0,0.00015821,2]
[401134789,1767959445879,-694.0,0.00015844,2]
[401134790,1767959445889,-1350.8714316,0.00015858,2]
[401134791,1767959445899,-2672.93720655,0.00015858,2]
[401134792,1767959445910,-346.16681303,0.00015858,2]
[401134793,1767959445923,-1500.0,0.00015864,2]
[401134794,1767959445934,-800.0,0.00015874,2]
[401134795,1767959445946,-467.0,0.00015876,2]
[401134796,1767959445957,-500.0,0.0001589,2]
[401134797,1767959445970,-2500.0,0.0001589,2]
[401134798,1767959445982,-2500.0,0.0001589,2]
[401134799,1767959445994,-2500.0,0.0001589,2]
[401134800,1767959446006,-800.0,0.00015918,2]
[401134801,1767959446016,-1109.49543993,0.00015943,2]
[401134802,1767959446026,-800.0,0.00015966,2]
[401134803,1767959446036,-1000.93620082,0.00016,2]
[401134804,1767959446046,-151.0,0.00016,2]
[401134805,1767959446057,-1390.71762886,0.00016,2]
[401134806,1767959446068,-792.11556616,0.00016012,2]
[401134807,1767959446080,-3000.0,0.00016012,2]
[401134808,1767959446093,-3000.0,0.00016012,2]
[401134809,1767959446104,-3000.0,0.00016012,2]
[401134810,1767959446114,-467.0,0.00016013,2]
[401134811,1767959446129,-694.0,0.00016024,2]
[401134812,1767959446141,-694.0,0.00016024,2]
[401134813,1767959446152,-306.0,0.00016031,2]
[401134814,1767959446165,-168.0,0.00016042,2]
[401134815,1767959446175,-694.0,0.00016053,2]
[401134816,1767959446186,-151.0,0.000161,2]
[401134817,1767959446197,-154.05396,0.00016111,2]
[401134818,1767959446208,-694.0,0.00016125,2]
[401134819,1767959446219,-161.7238551,0.00016149,2]
[401134820,1767959446230,-468.08292956,0.0001615,2]
[401134821,1767959446241,-1600.0,0.00016164,2]
[401134822,1767959446253,-533.88981491,0.00016179,2]
[401134823,1767959446264,-2579.17784983,0.00016179,2]
[401134824,1767959446275,-296.59935167,0.00016179,2]
[401134825,1767959446287,-151.0,0.000162,2]
[401134826,1767959446299,-646.61402311,0.00016227,2]
[401134827,1767959446309,-694.0,0.00016227,2]
[401134828,1767959446320,-864.0,0.00016254,2]
[401134829,1767959446331,-694.0,0.00016286,2]
[401134830,1767959446341,-151.0,0.000163,2]
[401134831,1767959446351,-151.0,0.000163,2]
[401134832,1767959446362,-151.0,0.000163,2]
[401134834,1767959446373,-1000.0,0.000163,2]
[401134835,1767959446384,-694.0,0.00016334,2]
[401134836,1767959446394,-714.0,0.00016377,2]
[401134838,1767959446406,-628.0,0.00016377,2]
[401134840,1767959446417,-1366.0,0.00016377,2]
[401134841,1767959446427,-2146.0,0.00016377,2]
[401134842,1767959446438,-694.0,0.00016392,2]
[401134843,1767959446449,-151.0,0.000164,2]
[401134844,1767959446461,-1241.72420012,0.00016412,2]
[401134845,1767959446472,-151.0,0.00016438,2]
[401134846,1767959446482,-195.886572,0.00016438,2]
[401134847,1767959446493,-151.0,0.00016438,2]
[401134848,1767959446504,-151.0,0.00016438,2]
[401134849,1767959446515,-151.0,0.00016438,2]
[401134850,1767959446526,-151.0,0.00016438,2]
[401134851,1767959446536,-151.0,0.00016438,2]
[401134852,1767959446547,-151.0,0.00016438,2]
[401134853,1767959446557,-151.0,0.00016438,2]
[401134854,1767959446568,-151.0,0.00016438,2]
[401134855,1767959446578,-151.0,0.00016438,2]
[401134856,1767959446588,-181.573329,0.00016438,2]
[401134857,1767959446599,-151.0,0.00016438,2]
[401134858,1767959446611,-151.0,0.00016438,2]
[401134859,1767959446622,-151.0,0.00016438,2]
[401134860,1767959446633,-151.0,0.00016438,2]
[401134861,1767959446643,-151.0,0.00016438,2]
[401134862,1767959446653,-151.0,0.00016438,2]
[401134863,1767959446664,-151.0,0.00016438,2]
[401134864,1767959446676,-164.14409414,0.00016438,2]
[401134865,1767959446688,-3000.0,0.00016438,2]
[401134866,1767959446700,-3000.0,0.00016438,2]
[401134867,1767959446712,-3000.0,0.00016438,2]
[401134868,1767959446723,-183.89,0.0001644,2]
[401134869,1767959446734,-183.89,0.0001644,2]
[401134870,1767959446746,-200.0,0.00016473,2]
[401134871,1767959446758,-694.0,0.00016554,2]
[401134872,1767959446770,-3500.0,0.0001656,2]
[401134873,1767959446783,-3500.0,0.0001656,2]
[401134874,1767959446794,-3500.0,0.0001656,2]
[401134875,1767959446805,-151.0,0.000166,2]
[401134876,1767959446816,-151.0,0.000166,2]
[401134877,1767959446828,-151.0,0.000166,2]
[401134878,1767959446839,-694.0,0.0001663,2]
[401134879,1767959446852,-154.3389544,0.00016637,2]
[401134880,1767959446864,-694.0,0.00016679,2]
[401134881,1767959446876,-151.0,0.000167,2]
[401134882,1767959446886,-5240.57487045,0.00016712,2]
[401134883,1767959446897,-1300.0,0.00016726,7]
[401134884,1767959446909,-553.64373807,0.00016727,2]
[401134885,1767959446919,-2674.60743027,0.00016727,2]
[401134886,1767959446930,-694.0,0.00016748,2]
[401134887,1767959446942,-5888.0,0.00016758,2]
[401134888,1767959446953,-694.0,0.00016763,2]
[401134889,1767959446962,-151.0,0.000168,2]
[401134890,1767959446973,-151.0,0.000168,2]
[401134891,1767959446983,-151.0,0.000168,2]
[401134892,1767959446993,-694.0,0.00016885,2]
[401134893,1767959447003,-694.0,0.0001689,2]
[401134894,1767959447013,-162.0,0.000169,2]
[401134895,1767959447023,-162.0,0.000169,2]
[401134896,1767959447033,-151.0,0.000169,2]
[401134897,1767959447044,-221.518,0.00016915,2]
[401134898,1767959447054,-232.291,0.00016915,2]
[401134899,1767959447064,-243.257,0.00016915,2]
[401134900,1767959447074,-250.0,0.00016915,2]
[401134901,1767959447085,-261.15,0.00016915,2]
[401134902,1767959447095,-267.363,0.00016915,2]
[401134903,1767959447106,-694.0,0.0001692,2]
[401134904,1767959447119,-3500.0,0.00016986,2]
[401134905,1767959447132,-3500.0,0.00016986,2]
[401134906,1767959447144,-3500.0,0.00016986,2]
[401134907,1767959447155,-205.32,0.00017,2]
[401134908,1767959447167,-41588.64417069,0.00017,2]
[401134909,1767959448266,-163.22,0.00011827,2]
[401134910,1767959448277,-186.54,0.00012522,2]
[401134911,1767959448288,-209.86,0.00013218,2]
[401134912,1767959448300,-24.98965737,0.00013914,2]
[401134913,1767959448320,-208.18034263,0.00013914,2]
[401134914,1767959448331,-151.0,0.00014535,2]
[401134915,1767959448341,-156.587,0.00014535,2]
[401134916,1767959448351,-151.97608453,0.00014535,2]
[401134917,1767959448361,-4290.42927482,0.00017,2]
[401134918,1767959495424,500.0,0.00030136,120]
[401134919,1767959495673,375.12269151,0.00030136,120]
[401134920,1767959508656,500.0,0.00030136,120]
[401134921,1767959509133,512.28407441,0.00030136,120]
[401134922,1767959556824,500.0,0.00030136,120]
[401134923,1767959557051,500.0,0.00030136,120]
[401134924,1767959557309,500.0,0.00030136,120]
[401134925,1767959557542,412.77,0.00030136,120]
[401134926,1767959563713,500.0,0.00030136,120]
[401134927,1767959563997,500.0,0.00030136,120]
[401134928,1767959564241,500.0,0.00030136,120]
[401134929,1767959564483,569.49,0.00030136,120]
[401134930,1767959573650,500.0,0.00030136,120]
[401134931,1767959573883,500.0,0.00030136,120]
[401134932,1767959574127,503.1324617,0.00030136,120]
[401134933,1767959579696,500.0,0.00030136,120]
[401134934,1767959580027,500.0,0.00030136,120]
[401134935,1767959580186,500.0,0.00030136,120]
[401134936,1767959580411,501.75448119,0.00030136,120]
[401134937,1767959584220,500.0,0.00030136,120]
[401134938,1767959584533,500.0,0.00030136,120]
[401134939,1767959584815,500.0,0.00030136,120]
[401134940,1767959585044,500.0,0.00030136,120]
[401134941,1767959585283,500.0,0.00030136,120]
[401134942,1767959585502,500.0,0.00030136,120]
[401134943,1767959585565,500.0,0.00030136,120]
[401134944,1767959585881,500.0,0.00030136,120]
[401134945,1767959585937,500.0,0.00030136,120]
[401134946,1767959586267,500.0,0.00030136,120]
[401134947,1767959586336,500.0,0.00030136,120]
[401134948,1767959586418,500.0,0.00030136,120]
[401134949,1767959586518,500.0,0.00030136,120]
[401134950,1767959586574,500.0,0.00030136,120]
[401134951,1767959586685,442.89147681,0.00030136,120]
[401134952,1767959586747,500.0,0.00030136,120]
[401134953,1767959586828,500.0,0.00030136,120]
[401134954,1767959586986,500.0,0.00030136,120]
[401134955,1767959587067,255.90225974,0.00030136,120]
[401134956,1767959587241,500.0,0.00030136,120]
[401134957,1767959587480,500.0,0.00030136,120]
[401134958,1767959587737,500.0,0.00030136,120]
[401134959,1767959587990,500.0,0.00030136,120]
[401134960,1767959588223,500.0,0.00030136,120]
[401134961,1767959588460,500.0,0.00030136,120]
[401134962,1767959588691,500.0,0.00030136,120]
[401134963,1767959588934,265.71,0.00030136,120]
[401134964,1767959593819,500.0,0.00030136,120]
[401134965,1767959594069,500.0,0.00030136,120]
[401134966,1767959594318,500.0,0.00030136,120]
[401134967,1767959594721,500.0,0.00030136,120]
[401134968,1767959594970,393.52,0.00030136,120]
[401134969,1767959597178,500.0,0.00030136,120]
[401134970,1767959597425,500.0,0.00030136,120]
[401134971,1767959597666,500.0,0.00030136,120]
[401134972,1767959597915,500.0,0.00030136,120]
[401134973,1767959598160,152.86,0.00030136,120]
[401134974,1767959605892,500.0,0.00030136,120]
[401134975,1767959606154,500.0,0.00030136,120]
[401134976,1767959606407,515.20039217,0.00030136,120]
[401134977,1767959614495,500.0,0.00030136,120]
[401134978,1767959614724,500.0,0.00030136,120]
[401134979,1767959615056,500.0,0.00030136,120]
[401134980,1767959615295,570.33,0.00030136,120]
[401134981,1767959618015,500.0,0.00030136,120]
[401134982,1767959618295,500.0,0.00030136,120]
[401134983,1767959618556,500.0,0.00030136,120]
[401134984,1767959618794,500.0,0.00030136,120]
[401134985,1767959619045,500.0,0.00030136,120]
[401134986,1767959619285,500.0,0.00030136,120]
[401134987,1767959619525,292.87089406,0.00030136,120]
[401134988,1767959629739,500.0,0.00030136,120]
[401134989,1767959629963,500.0,0.00030136,120]
[401134990,1767959641548,500.0,0.00030136,120]
[401134991,1767959641869,500.0,0.00030136,120]
[401134992,1767959642101,504.56929204,0.00030136,120]
[401134993,1767959643602,626.32134771,0.00030136,120]
[401134994,1767959651527,500.0,0.00030136,120]
[401134995,1767959651756,500.0,0.00030136,120]
[401134996,1767959651990,500.0,0.00030136,120]
[401134997,1767959652251,500.0,0.00030136,120]
[401134998,1767959652477,500.0,0.00030136,120]
[401134999,1767959652705,500.0,0.00030136,120]
[401135000,1767959652942,500.0,0.00030136,120]
[401135001,1767959653160,500.0,0.00030136,120]
[401135002,1767959653328,578.02,0.00030136,120]
[401135003,1767959653383,500.0,0.00030136,120]
[401135004,1767959653564,578.02,0.00030136,120]
[401135005,1767959653619,500.0,0.00030136,120]
[401135006,1767959653793,578.02,0.00030136,120]
[401135007,1767959653860,500.0,0.00030136,120]
[401135008,1767959654022,578.02,0.00030136,120]
[401135009,1767959654104,500.0,0.00030136,120]
[401135010,1767959654309,578.02,0.00030136,120]
[401135011,1767959654371,500.0,0.00030136,120]
[401135012,1767959654572,578.02,0.00030136,120]
[401135013,1767959654631,500.0,0.00030136,120]
[401135014,1767959654814,500.0,0.00030136,120]
[401135015,1767959654994,578.02,0.00030136,120]
[401135016,1767959655050,500.0,0.00030136,120]
[401135017,1767959655101,578.02,0.00030136,120]
[401135018,1767959655253,500.0,0.00030136,120]
[401135019,1767959655301,578.02,0.00030136,120]
[401135020,1767959655491,204.19352814,0.00030136,120]
[401135021,1767959655553,578.02,0.00030136,120]
[401135022,1767959655781,578.02,0.00030136,120]
[401135023,1767959656004,578.02,0.00030136,120]
[401135024,1767959656241,578.02,0.00030136,120]
[401135025,1767959656484,578.02,0.00030136,120]
[401135026,1767959656729,578.02,0.00030136,120]
[401135027,1767959656950,578.02,0.00030136,120]
[401135028,1767959657199,578.02,0.00030136,120]
[401135029,1767959657434,578.02,0.00030136,120]
[401135030,1767959657653,578.02,0.00030136,120]
[401135031,1767959657886,578.02,0.00030136,120]
[401135032,1767959658116,578.02,0.00030136,120]
[401135033,1767959658350,578.02,0.00030136,120]
[401135034,1767959658606,578.02,0.00030136,120]
[401135035,1767959658846,578.0620849,0.00030136,120]
[401135036,1767959659972,500.0,0.00030136,120]
[401135037,1767959660206,500.0,0.00030136,120]
[401135038,1767959660458,360.52437976,0.00030136,120]
[401135039,1767959665599,500.0,0.00030136,120]
[401135040,1767959665847,500.0,0.00030136,120]
[401135041,1767959666101,619.10863968,0.00030136,120]
[401135042,1767959677011,500.0,0.00030136,120]
[401135043,1767959677249,500.0,0.00030136,120]
[401135044,1767959677489,500.0,0.00030136,120]
[401135045,1767959677724,500.0,0.00030136,120]
[401135046,1767959677950,500.0,0.00030136,120]
[401135047,1767959678191,500.0,0.00030136,120]
[401135048,1767959678435,500.0,0.00030136,120]
[401135049,1767959678687,500.0,0.00030136,120]
[401135050,1767959678936,500.0,0.00030136,120]
[401135051,1767959679179,500.0,0.00030136,120]
[401135052,1767959679406,500.0,0.00030136,120]
[401135053,1767959679627,500.0,0.00030136,120]
[401135054,1767959679876,500.0,0.00030136,120]
[401135055,1767959680118,500.0,0.00030136,120]
[401135056,1767959680384,500.0,0.00030136,120]
[401135057,1767959680619,500.0,0.00030136,120]
[401135058,1767959680858,379.4206089,0.00030136,120]
[401135059,1767959686936,500.0,0.00030136,120]
[401135060,1767959687210,500.0,0.00030136,120]
[401135061,1767959687451,539.24182784,0.00030136,120]
[401135062,1767959692369,500.0,0.00030136,120]
[401135063,1767959692624,500.0,0.00030136,120]
[401135064,1767959693222,500.0,0.00030136,120]
[401135065,1767959693477,500.0,0.00030136,120]
[401135066,1767959694114,500.0,0.00030136,120]
[401135067,1767959694389,500.0,0.00030136,120]
[401135068,1767959694654,500.0,0.00030136,120]
[401135069,1767959694888,500.0,0.00030136,120]
[401135070,1767959695132,500.0,0.00030136,120]
[401135071,1767959695379,500.0,0.00030136,120]
[401135072,1767959695680,500.0,0.00030136,120]
[401135073,1767959695931,170.42,0.00030136,120]
[401135074,1767959700238,500.0,0.00030136,120]
[401135075,1767959700473,500.0,0.00030136,120]
[401135076,1767959700567,500.0,0.00030136,120]
[401135077,1767959700709,604.15764355,0.00030136,120]
[401135078,1767959700830,500.0,0.00030136,120]
[401135079,1767959701059,243.6817073,0.00030136,120]
[401135080,1767959741860,500.0,0.00030136,120]
[401135081,1767959741924,192.31046126,0.00030136,120]
[401135082,1767959742099,500.0,0.00030136,120]
[401135083,1767959742346,500.0,0.00030136,120]
[401135084,1767959742604,207.36,0.00030136,120]
[401135085,1767959752924,500.0,0.00030136,120]
[401135086,1767959753247,500.0,0.00030136,120]
[401135087,1767959753845,500.0,0.00030136,120]
[401135088,1767959754228,308.672291,0.00030136,120]
[401135089,1767959772447,500.0,0.00030136,120]
[401135090,1767959772715,500.0,0.00030136,120]
[401135091,1767959772970,523.12257085,0.00030136,120]
[401135092,1767959792456,200.0,0.00030136,120]
[401135093,1767959792864,200.0,0.00030136,120]
[401135094,1767959793114,201.58813121,0.00030136,120]
[401135095,1767959795164,500.0,0.00030136,120]
[401135096,1767959795418,500.0,0.00030136,120]
[401135097,1767959795645,500.0,0.00030136,120]
[401135098,1767959876253,500.0,0.00030136,120]
[401135099,1767959876541,500.0,0.00030136,120]
[401135100,1767959876808,500.0,0.00030136,120]
[401135101,1767959877053,500.0,0.00030136,120]
[401135102,1767959877281,500.0,0.00030136,120]
[401135103,1767959877532,280.87151617,0.00030136,120]
[401135107,1767959880040,500.0,0.00030136,120]
[401135108,1767959880331,180.34481529,0.00030136,120]
[401135109,1767959998636,422.16154837,0.00030136,120]
[401135111,1767960020508,500.0,0.00030136,120]
[401135112,1767960020757,500.0,0.00030136,120]
[401135113,1767960021012,191.63623828,0.00030136,120]
[401135114,1767960073739,500.0,0.00030136,120]
[401135115,1767960073960,500.0,0.00030136,120]
[401135116,1767960074198,504.24913202,0.00030136,120]
[401135118,1767960080896,500.0,0.00030136,120]
[401135119,1767960081121,500.0,0.00030136,120]